fUSD/lending_fUSD_20240615
["ID","MTS","AMOUNT","RATE_DAILY","PERIOD"]
[329591496,1718473465012,3327.789243,0.00010643,2]
[329591497,1718473550610,-328.19215418,0.00010694,2]
[329591498,1718473550649,-155.0,0.00010694,2]
[329591499,1718473550856,-522.98728476,0.00010695,2]
[329591500,1718473550896,-150.0,0.00010698,2]
[329591501,1718473561455,300.0,0.00010698,2]
[329591502,1718473562588,405.28,0.00010666,2]
[329591506,1718473621986,300.0,0.00010698,2]
[329591507,1718473632593,-32608.0,0.00010699,2]
[329591508,1718473634159,-15284.07362971,0.00010699,2]
[329591509,1718473693502,5000.0,0.000275,120]
[329591510,1718473745220,-328.19215418,0.00010697,2]
[329591511,1718473745262,-8874.13364582,0.00010699,2]
[329591512,1718473752228,-79814.20581749,0.00010699,2]
[329591513,1718473752265,-14265.2062158,0.00010754,2]
[329591514,1718473752310,-281.70076816,0.00010754,2]
[329591515,1718473752355,-4762.605,0.00010754,2]
[329591516,1718473756149,-150.0,0.00012438,2]
[329591517,1718473756182,-219.04401576,0.00012457,2]
[329591518,1718473756212,-2545.70358424,0.00012457,2]
[329591543,1718473833556,-300.0,0.00012456,2]
[329591544,1718473833572,-639.82724979,0.00012457,2]
[329591545,1718473833588,-504.69421276,0.00012457,2]
[329591546,1718473833708,-882.33461522,0.00012457,2]
[329591547,1718473833736,-735.06296937,0.00012457,2]
[329591548,1718473834892,-2540.22658139,0.00012457,2]
[329591549,1718473834977,-1577.90951174,0.00012457,2]
[329591550,1718473834996,-977.03499773,0.00012457,2]
[329591551,1718473835014,-277.50880542,0.00012457,2]
[329591554,1718473835286,-311.90032534,0.00012457,2]
[329591555,1718473835359,-616.59989011,0.00012457,2]
[329591556,1718473835399,-599.46000008,0.00012457,2]
[329591557,1718473835424,-632.96082639,0.00012457,2]
[329591558,1718473835449,-421.55839924,0.00012457,2]
[329591559,1718473835632,-3708.66935924,0.00012457,2]
[329591560,1718473835656,-250.0,0.00012507,2]
[329591561,1718473835680,-1701.42,0.00012533,2]
[329591562,1718473835710,-2177.42,0.00012535,2]
[329591563,1718473835747,-250.0,0.00012547,2]
[329591564,1718473835778,-19700.0,0.00012549,2]
[329591565,1718473835810,-1000.0,0.00012562,2]
[329591566,1718473835831,-3082.05,0.0001258,2]
[329591567,1718473835849,-499.99,0.00012584,2]
[329591568,1718473835889,-399.56,0.00012587,2]
[329591569,1718473835911,-153.22,0.00012588,2]
[329591570,1718473835959,-393.47999121,0.00012719,2]
[329591571,1718473836000,-155.0,0.00012719,2]
[329591572,1718473836046,-150.15,0.00012721,2]
[329591573,1718473836072,-150.15,0.00012776,2]
[329591574,1718473836094,-150.15,0.00012831,2]
[329591575,1718473836118,-150.15,0.00012886,2]
[329591576,1718473836143,-405.28,0.0001293,2]
[329591577,1718473836162,-150.15,0.00012942,2]
[329591578,1718473836192,-397.89000003,0.0001298,2]
[329591579,1718473836220,-150.15,0.00012997,2]
[329591580,1718473836248,-328.19215418,0.00013051,2]
[329591581,1718473836273,-150.15,0.00013052,2]
[329591582,1718473836297,-150.15,0.00013107,2]
[329591583,1718473836323,-150.15,0.00013163,2]
[329591584,1718473836341,-150.15,0.00013218,2]
[329591585,1718473836360,-150.15,0.00013273,2]
[329591586,1718473836409,-150.15,0.00013328,2]
[329591587,1718473836435,-625.47738869,0.00013342,2]
[329591588,1718473836452,-150.15,0.00013384,2]
[329591589,1718473836478,-150.0,0.0001365,2]
[329591590,1718473836507,-150.0,0.00013651,2]
[329591591,1718473836529,-150.0,0.00013653,2]
[329591592,1718473836564,-150.0,0.00013658,2]
[329591593,1718473836581,-150.0,0.00013663,2]
[329591594,1718473836616,-150.0,0.00013664,2]
[329591595,1718473836636,-150.0,0.00013667,2]
[329591596,1718473836653,-176.68338763,0.00013668,2]
[329591597,1718473836674,-243.31661237,0.00013668,2]
[329591598,1718473836691,-134.21304848,0.00013671,2]
[329591599,1718473836765,-15.78695152,0.00013671,2]
[329591600,1718473836788,-150.0,0.00013674,2]
[329591601,1718473836810,-150.0,0.00013675,2]
[329591602,1718473836829,-107.53789722,0.00013676,2]
[329591605,1718473839347,-499.99,0.00012584,2]
[329591606,1718473839372,-42.46210278,0.00013676,2]
[329591607,1718473839395,-150.0,0.00013677,2]
[329591608,1718473839413,-150.0,0.0001368,2]
[329591609,1718473839424,-150.0,0.00013682,2]
[329591610,1718473839438,-150.0,0.00013687,2]
[329591611,1718473839458,-150.0,0.00013691,2]
[329591612,1718473839472,-3271.17585529,0.00013692,2]
[329591613,1718473839484,-300.0,0.00013692,2]
[329591614,1718473839496,-150.0,0.00013693,2]
[329591615,1718473839506,-150.0,0.00013694,2]
[329591616,1718473839522,-150.0,0.00013695,2]
[329591617,1718473839541,-150.0,0.00013698,2]
[329591618,1718473839555,-205.23,0.00013699,2]
[329591619,1718473839569,-177.79,0.00013699,2]
[329591620,1718473839590,-150.0,0.000137,2]
[329591621,1718473839612,-150.0,0.00013702,2]
[329591622,1718473839623,-150.0,0.00013702,2]
[329591623,1718473839633,-150.0,0.00013705,2]
[329591624,1718473839645,-150.0,0.00013705,2]
[329591625,1718473839684,-150.0,0.00013711,2]
[329591626,1718473839696,-150.0,0.00013711,2]
[329591627,1718473839708,-1014.70481618,0.00013711,2]
[329591628,1718473839740,-485.29518382,0.00013711,2]
[329591629,1718473839766,-150.0,0.00013714,2]
[329591630,1718473839793,-150.0,0.00013714,2]
[329591631,1718473839808,-150.0,0.00013717,2]
[329591632,1718473839820,-150.0,0.00013719,2]
[329591633,1718473839833,-253.45455834,0.00013719,2]
[329591634,1718473839865,-150.0,0.00013724,2]
[329591635,1718473839876,-150.0,0.00013734,2]
[329591636,1718473839895,-150.0,0.00013734,2]
[329591637,1718473839906,-150.0,0.00013737,2]
[329591638,1718473839924,-150.0,0.00013739,2]
[329591639,1718473839940,-150.0,0.00013747,2]
[329591640,1718473839953,-150.0,0.00013747,2]
[329591641,1718473839980,-150.0,0.00013752,2]
[329591642,1718473839993,-150.0,0.00013752,2]
[329591643,1718473840006,-150.0,0.00013757,2]
[329591644,1718473840020,-300.0,0.0001376,2]
[329591645,1718473840043,-150.0,0.0001376,2]
[329591646,1718473840068,-150.0,0.00013764,2]
[329591647,1718473840089,-150.0,0.00013765,2]
[329591648,1718473840121,-150.0,0.00013767,2]
[329591649,1718473840140,-150.0,0.00013769,2]
[329591650,1718473840176,-1500.0,0.0001377,2]
[329591651,1718473840205,-150.0,0.0001377,2]
[329591652,1718473840235,-150.0,0.00013771,2]
[329591653,1718473840258,-150.0,0.00013771,2]
[329591654,1718473840272,-150.0,0.00013771,2]
[329591655,1718473840316,-150.0,0.00013773,2]
[329591656,1718473840387,-150.0,0.00013778,2]
[329591657,1718473840432,-150.0,0.00013781,2]
[329591658,1718473840447,-150.0,0.00013787,2]
[329591659,1718473840461,-150.0,0.00013787,2]
[329591660,1718473840479,-1500.0,0.00013789,2]
[329591661,1718473840504,-150.0,0.00013789,2]
[329591662,1718473840521,-150.0,0.0001379,2]
[329591663,1718473840581,-150.0,0.0001379,2]
[329591664,1718473840621,-150.0,0.00013794,2]
[329591665,1718473840645,-150.0,0.00013796,2]
[329591666,1718473840685,-1000.0,0.00013797,2]
[329591667,1718473840704,-150.0,0.00013799,2]
[329591668,1718473840733,-150.0,0.00013801,2]
[329591669,1718473840746,-150.0,0.00013806,2]
[329591670,1718473840766,-150.0,0.00013812,2]
[329591671,1718473840791,-150.0,0.00013813,2]
[329591672,1718473840804,-11.24963052,0.00013813,2]
[329591673,1718473841005,-138.75036948,0.00013813,2]
[329591674,1718473841028,-150.0,0.00013816,2]
[329591675,1718473841043,-150.0,0.00013822,2]
[329591676,1718473841072,-150.0,0.00013823,2]
[329591677,1718473841085,-150.0,0.00013823,2]
[329591678,1718473841103,-150.0,0.00013823,2]
[329591679,1718473841119,-150.0,0.00013831,2]
[329591680,1718473841132,-150.0,0.00013831,2]
[329591681,1718473841164,-150.0,0.00013838,2]
[329591682,1718473841182,-150.0,0.00013839,2]
[329591683,1718473841195,-150.0,0.00013839,2]
[329591684,1718473841233,-150.0,0.0001384,2]
[329591685,1718473841246,-150.0,0.0001384,2]
[329591686,1718473841258,-150.0,0.00013841,2]
[329591687,1718473841271,-1500.0,0.00013843,2]
[329591688,1718473841293,-48.45480734,0.00013844,2]
[329591698,1718473841875,-2500.0,0.00013797,2]
[329591699,1718473841888,-251.54519266,0.00013844,2]
[329591700,1718473841899,-150.0,0.00013845,2]
[329591701,1718473841912,-150.0,0.00013849,2]
[329591702,1718473841923,-150.0,0.00013854,2]
[329591703,1718473841934,-150.0,0.00013854,2]
[329591704,1718473841950,-150.0,0.00013857,2]
[329591706,1718473841975,-221.33050222,0.00013858,2]
[329591707,1718473841987,-1030.98382353,0.00013859,2]
[329591709,1718473842000,-11050.41926931,0.0001386,2]
[329591710,1718473842012,-883.50105,0.0001386,2]
[329591711,1718473842023,-150.0,0.00013864,2]
[329591712,1718473842038,-150.0,0.00013865,2]
[329591713,1718473842068,-150.0,0.00013867,2]
[329591714,1718473842092,-300.0,0.00013869,2]
[329591715,1718473842125,-150.0,0.00013875,2]
[329591716,1718473842147,-150.0,0.00013875,2]
[329591717,1718473842188,-150.0,0.00013878,2]
[329591718,1718473842212,-150.0,0.00013879,2]
[329591719,1718473842233,-150.0,0.00013882,2]
[329591720,1718473842254,-150.0,0.00013884,2]
[329591721,1718473842274,-150.0,0.00013887,2]
[329591722,1718473842290,-500.0,0.00013888,2]
[329591723,1718473842302,-200.0,0.00013888,2]
[329591724,1718473842336,-150.0,0.00013888,2]
[329591725,1718473842355,-155.78755022,0.00013895,2]
[329591726,1718473842387,-155.64540202,0.00013895,2]
[329591727,1718473842408,-264.7127732,0.00013896,2]
[329591728,1718473842422,-266.03294333,0.00013896,2]
[329591729,1718473842439,-508.47342223,0.00013896,2]
[329591730,1718473842456,-203.41389043,0.00013896,2]
[329591731,1718473842477,-206.34134894,0.00013896,2]
[329591732,1718473842509,-299.30508647,0.00013896,2]
[329591733,1718473842521,-155.0,0.00013896,2]
[329591734,1718473842543,-2384.03389456,0.00013897,2]
[329591735,1718473842553,-164.97012723,0.00013898,2]
[329591736,1718473842572,-155.25006552,0.00013898,2]
[329591737,1718473842594,-225.6599661,0.00013898,2]
[329591738,1718473842608,-206.40937146,0.00013898,2]
[329591739,1718473842623,-667.03140349,0.00013898,2]
[329591740,1718473842636,-3732.92266994,0.00013898,2]
[329591741,1718473842656,-1926.00472788,0.00013898,2]
[329591742,1718473842668,-178.32537667,0.00013899,2]
[329591743,1718473842684,-1000.0,0.00013899,2]
[329591744,1718473842708,-47718.30348928,0.000139,2]
[329591750,1718473844739,-710.26,0.000139,2]
[329591751,1718473844781,-1875.08761072,0.000139,2]
[329591752,1718473844792,-168.54169865,0.000139,2]
[329591753,1718473844803,-9740.43522929,0.000139,2]
[329591754,1718473845413,-707.3898016,0.000139,2]
[329591755,1718473845435,-3529.07054878,0.000139,2]
[329591756,1718473845453,-300.0,0.000139,2]
[329591757,1718473845467,-632.0,0.000139,2]
[329591758,1718473845484,-164.71077271,0.000139,2]
[329591759,1718473845499,-150.0,0.000139,2]
[329591760,1718473845532,-329.72544664,0.000139,2]
[329591761,1718473845559,-735.33585411,0.000139,2]
[329591762,1718473845572,-1312.76603776,0.000139,2]
[329591763,1718473845601,-308.78429694,0.000139,2]
[329591764,1718473845616,-150.0,0.00013902,2]
[329591765,1718473845630,-150.0,0.00013904,2]
[329591766,1718473845658,-150.0,0.00013905,2]
[329591767,1718473845671,-150.0,0.00013917,2]
[329591768,1718473845691,-954.3873665,0.00013989,2]
[329591769,1718473845703,-1410.5653059,0.00013989,2]
[329591770,1718473845736,-2008.11657437,0.00013989,2]
[329591771,1718473845755,-13515.29470943,0.00013989,2]
[329591772,1718473845767,-150.57,0.0001399,2]
[329591773,1718473845781,-150.57,0.0001399,2]
[329591774,1718473845800,-150.57,0.0001399,2]
[329591775,1718473845815,-959.31789065,0.00013999,2]
[329591776,1718473845845,-10662.60236347,0.00014,2]
[329591777,1718473845861,-2385.14,0.00014,2]
[329591778,1718473845977,-2421.6,0.00014,2]
[329591779,1718473846036,-401.38602258,0.00014,2]
[329591780,1718473846055,-4648.47061712,0.00014,2]
[329591782,1718473846089,-732.51196725,0.00014,2]
[329591783,1718473846217,-21819.99370451,0.00014,2]
[329591784,1718473846283,-5037.51144294,0.00014,2]
[329591797,1718473847586,-3217.47124158,0.00014,2]
[329591800,1718473848807,-1257.69036637,0.00014,2]
[329591801,1718473849100,-26862.6252902,0.00014,2]
[329591802,1718473849185,-265713.94301484,0.00014,2]
[329591808,1718474832179,-328.19215418,0.00010702,2]
[329591809,1718474832216,-1261.96442366,0.00010703,2]
[329591810,1718474832267,-449.40300932,0.00010704,2]
[329591811,1718474832307,-434.78,0.00010727,2]
[329591812,1718474832369,-453.76515583,0.00012359,2]
[329591813,1718474832414,-255.68449225,0.00012498,2]
[329591814,1718474832466,-155.09678174,0.00012498,2]
[329591815,1718474832499,-908.19,0.00012527,2]
[329591816,1718474832537,-6569.34665537,0.00012562,2]
[329591817,1718474839475,-603.5825027,0.00012562,2]
[329591818,1718474946139,-413.04,0.0001076,2]
[329591828,1718475032303,-328.19215418,0.0001256,2]
[329591829,1718475032330,-300.0,0.00012561,2]
[329591830,1718475032347,-2029.07443932,0.00012562,2]
[329591831,1718475032729,-1075.9549519,0.00012562,2]
[329591832,1718475032742,-9543.36912199,0.00012562,2]
[329591833,1718475032825,-1307.55159576,0.00012562,2]
[329591834,1718475033014,-2771.12073296,0.00012562,2]
[329591835,1718475033032,-250.0,0.00012565,2]
[329591836,1718475033048,-510.78,0.00012634,2]
[329591837,1718475033071,-250.0,0.0001266,2]
[329591838,1718475033088,-1000.0,0.00012663,2]
[329591839,1718475033098,-500.0,0.00012687,2]
[329591840,1718475033111,-447.43,0.00012774,2]
[329591841,1718475033142,-447.43,0.00012809,2]
[329591842,1718475033154,-447.43,0.00012844,2]
[329591843,1718475033176,-447.43,0.00012879,2]
[329591844,1718475033224,-8703.86,0.00012879,2]
[329591845,1718475033236,-447.43,0.00012914,2]
[329591846,1718475033246,-447.43,0.0001295,2]
[329591847,1718475033257,-447.43,0.00012985,2]
[329591848,1718475033272,-447.43,0.0001302,2]
[329591849,1718475033285,-413.04,0.00013023,2]
[329591850,1718475033295,-447.43,0.00013055,2]
[329591851,1718475033309,-447.43,0.0001309,2]
[329591852,1718475033322,-447.43,0.00013125,2]
[329591853,1718475033337,-447.43,0.0001316,2]
[329591854,1718475033352,-447.43,0.00013195,2]
[329591855,1718475033381,-447.43,0.0001323,2]
[329591856,1718475033393,-447.43,0.00013265,2]
[329591857,1718475033406,-447.43,0.000133,2]
[329591859,1718475033418,-447.43,0.00013335,2]
[329591861,1718475033436,-447.43,0.0001337,2]
[329591863,1718475033447,-447.43,0.00013405,2]
[329591864,1718475033462,-447.43,0.0001344,2]
[329591865,1718475033476,-175.49,0.00013699,2]
[329591866,1718475033488,-200.0,0.00013699,2]
[329591867,1718475033503,-177.79,0.00013699,2]
[329591868,1718475033515,-326.73,0.00013699,2]
[329591869,1718475033526,-150.0,0.00013728,2]
[329591871,1718475033545,-150.0,0.00013729,2]
[329591873,1718475033557,-150.0,0.00013731,2]
[329591874,1718475033570,-150.0,0.00013736,2]
[329591876,1718475033580,-150.0,0.00013737,2]
[329591878,1718475033608,-150.0,0.00013739,2]
[329591880,1718475033620,-150.0,0.00013746,2]
[329591882,1718475033631,-150.0,0.00013748,2]
[329591884,1718475033648,-150.0,0.00013758,2]
[329591886,1718475033673,-150.0,0.00013759,2]
[329591889,1718475033722,-150.0,0.0001376,2]
[329591890,1718475033750,-150.0,0.00013761,2]
[329591891,1718475033783,-150.0,0.00013761,2]
[329591892,1718475033798,-150.0,0.00013763,2]
[329591893,1718475033813,-150.0,0.00013766,2]
[329591894,1718475033825,-150.0,0.00013771,2]
[329591895,1718475033838,-150.0,0.00013773,2]
[329591896,1718475033849,-150.0,0.00013775,2]
[329591898,1718475033879,-150.0,0.00013776,2]
[329591899,1718475033897,-150.0,0.00013776,2]
[329591900,1718475033909,-420.0,0.00013781,2]
[329591901,1718475033931,-150.0,0.00013784,2]
[329591902,1718475033972,-150.0,0.00013788,2]
[329591903,1718475034003,-150.0,0.00013788,2]
[329591904,1718475034018,-7182.5534,0.00013789,2]
[329591905,1718475034030,-1000.0,0.00013789,2]
[329591906,1718475034041,-2500.0,0.00013789,2]
[329591907,1718475034065,-150.0,0.00013791,2]
[329591908,1718475034102,-150.0,0.00013792,2]
[329591909,1718475034140,-754.32816333,0.00013793,2]
[329591910,1718475034165,-150.0,0.00013794,2]
[329591911,1718475034182,-150.0,0.00013797,2]
[329591912,1718475034197,-150.0,0.000138,2]
[329591913,1718475034218,-150.0,0.00013805,2]
[329591914,1718475034248,-150.0,0.00013806,2]
[329591915,1718475034267,-150.0,0.00013807,2]
[329591916,1718475034285,-150.0,0.0001381,2]
[329591917,1718475034313,-150.0,0.00013814,2]
[329591918,1718475034331,-315.35119243,0.00013814,2]
[329591919,1718475034343,-150.0,0.00013816,2]
[329591920,1718475034371,-150.0,0.00013822,2]
[329591921,1718475034382,-150.0,0.00013822,2]
[329591922,1718475034411,-150.0,0.00013825,2]
[329591923,1718475034429,-150.0,0.00013826,2]
[329591924,1718475034442,-155.12676373,0.00013827,2]
[329591925,1718475034460,-300.0,0.00013827,2]
[329591926,1718475034517,-150.0,0.00013832,2]
[329591927,1718475034530,-150.0,0.00013833,2]
[329591928,1718475034548,-150.0,0.00013836,2]
[329591929,1718475034558,-150.0,0.00013837,2]
[329591930,1718475034571,-150.0,0.00013837,2]
[329591931,1718475034589,-150.0,0.00013837,2]
[329591932,1718475034611,-150.0,0.00013838,2]
[329591933,1718475034623,-150.0,0.00013845,2]
[329591934,1718475034634,-150.0,0.00013846,2]
[329591935,1718475034645,-150.0,0.00013847,2]
[329591936,1718475034660,-150.0,0.00013853,2]
[329591937,1718475034679,-150.0,0.00013858,2]
[329591938,1718475034694,-1500.0,0.00013859,2]
[329591939,1718475034707,-150.0,0.00013859,2]
[329591940,1718475034726,-150.0,0.00013859,2]
[329591941,1718475034741,-150.0,0.00013859,2]
[329591942,1718475034754,-150.0,0.00013861,2]
[329591943,1718475034815,-150.0,0.00013862,2]
[329591944,1718475034856,-150.0,0.00013864,2]
[329591945,1718475034892,-150.0,0.00013866,2]
[329591946,1718475034906,-150.0,0.00013866,2]
[329591947,1718475034919,-150.0,0.00013869,2]
[329591948,1718475034955,-150.0,0.00013873,2]
[329591949,1718475034970,-150.0,0.00013873,2]
[329591950,1718475035008,-150.0,0.00013874,2]
[329591951,1718475035048,-150.0,0.00013875,2]
[329591952,1718475035096,-150.0,0.00013882,2]
[329591953,1718475035116,-150.0,0.00013885,2]
[329591954,1718475035173,-409.85937535,0.00013887,2]
[329591955,1718475035191,-466.83963528,0.00013887,2]
[329591956,1718475035205,-1160.23216686,0.00013887,2]
[329591957,1718475035216,-1335.21825583,0.00013887,2]
[329591958,1718475035242,-500.0,0.00013888,2]
[329591959,1718475035254,-200.0,0.00013888,2]
[329591960,1718475035269,-245000.0,0.00013889,2]
[329591961,1718475035284,-150.0,0.00013893,2]
[329591962,1718475035305,-150.0,0.00013893,2]
[329591963,1718475035316,-150.0,0.00013896,2]
[329591964,1718475035329,-929.0884,0.00013899,2]
[329591965,1718475035340,-1000.0,0.00013899,2]
[329591966,1718475035353,-1000.0,0.00013899,2]
[329591967,1718475035371,-168.3542393,0.000139,2]
[329591968,1718475035415,-12812.15428141,0.000139,2]
[329591969,1718475035430,-164.71077271,0.000139,2]
[329591970,1718475035453,-1899.54524828,0.000139,2]
[329591971,1718475035488,-1620.0,0.000139,2]
[329591972,1718475035498,-327.47752194,0.000139,2]
[329591973,1718475035510,-150.0,0.00013903,2]
[329591974,1718475035537,-150.0,0.00013905,2]
[329591975,1718475035554,-150.0,0.00013908,2]
[329591976,1718475035569,-150.0,0.00013909,2]
[329591977,1718475035606,-150.0,0.00013911,2]
[329591978,1718475035619,-150.0,0.00013911,2]
[329591979,1718475035632,-150.0,0.00013918,2]
[329591980,1718475035645,-150.0,0.00013918,2]
[329591981,1718475035665,-150.0,0.00013919,2]
[329591982,1718475035676,-755.0,0.00013922,2]
[329591983,1718475035690,-150.0,0.00013922,2]
[329591984,1718475035715,-150.0,0.00013927,2]
[329591985,1718475035735,-300.0,0.00013931,2]
[329591986,1718475035747,-150.0,0.00013932,2]
[329591987,1718475035763,-150.0,0.00013934,2]
[329591988,1718475035780,-150.0,0.00013937,2]
[329591989,1718475035791,-150.0,0.00013939,2]
[329591990,1718475035810,-150.0,0.0001394,2]
[329591991,1718475035826,-150.0,0.00013943,2]
[329591992,1718475035849,-150.0,0.00013951,2]
[329591993,1718475035880,-150.0,0.00013956,2]
[329591994,1718475035905,-150.0,0.00013956,2]
[329591995,1718475035937,-150.0,0.00013958,2]
[329591996,1718475035952,-150.0,0.00013963,2]
[329591997,1718475035972,-150.0,0.00013964,2]
[329591998,1718475035996,-150.0,0.00013969,2]
[329591999,1718475036018,-150.0,0.00013972,2]
[329592000,1718475036037,-150.0,0.00013975,2]
[329592001,1718475036049,-150.0,0.00013976,2]
[329592002,1718475036061,-150.0,0.00013978,2]
[329592003,1718475036072,-150.0,0.00013978,2]
[329592004,1718475036090,-150.0,0.00013982,2]
[329592005,1718475036105,-150.0,0.00013982,2]
[329592006,1718475036116,-150.0,0.00013983,2]
[329592007,1718475036136,-150.0,0.00013983,2]
[329592008,1718475036147,-150.0,0.00013983,2]
[329592009,1718475036157,-150.0,0.00013988,2]
[329592010,1718475036175,-2509.4396842,0.00013989,2]
[329592011,1718475036187,-2542.105065,0.00013989,2]
[329592012,1718475036200,-23616.9171745,0.00013989,2]
[329592013,1718475036213,-2145.9976413,0.00013989,2]
[329592014,1718475036228,-2652.5088074,0.00013989,2]
[329592015,1718475036263,-150.57,0.0001399,2]
[329592016,1718475036277,-150.0,0.00013992,2]
[329592017,1718475036298,-150.0,0.00013993,2]
[329592018,1718475036312,-150.0,0.00013995,2]
[329592019,1718475036333,-155.0,0.00013998,2]
[329592020,1718475036346,-13846.55047256,0.00013999,2]
[329592021,1718475036360,-150.01,0.00013999,2]
[329592022,1718475036371,-2118.32131659,0.00013999,2]
[329592023,1718475036384,-352321.4838364,0.00014,2]
[329592024,1718475036894,-485.81268285,0.00014,2]
[329592025,1718475037198,-259.94301548,0.00014,2]
[329592029,1718475039634,-462037.16885885,0.00014,2]
[329592030,1718475039675,-1920.38628,0.00014,2]
[329592031,1718475039692,-5724.64400883,0.00014,2]
[329592032,1718475039741,-454.73297172,0.00014,2]
[329592033,1718475039812,-312.84687233,0.00014,2]
[329592034,1718475039977,-589.98973099,0.00014,2]
[329592035,1718475040062,-674.10473515,0.00014,2]
[329592036,1718475040082,-30961.14939622,0.00014,2]
[329592037,1718475040212,-3e-08,0.00014,2]
[329592039,1718475040287,-356.14623773,0.00014,2]
[329592040,1718475040350,-358.005,0.00014,2]
[329592041,1718475040376,-3378.6,0.00014,2]
[329592050,1718475043043,-884.29427894,0.00014,2]
[329592052,1718475043070,-345.1849985,0.00014,2]
[329592054,1718475043114,-1476.6540648,0.00014,2]
[329592056,1718475043163,-993.28232923,0.00014,2]
[329592058,1718475043189,-3753.29541752,0.00014,2]
[329592059,1718475043236,-2222.0873454,0.00014,2]
[329592060,1718475043350,-1201.23505853,0.00014,2]
[329592061,1718475043629,-41648.77954785,0.00014,2]
[329592062,1718475043700,-64188.10666615,0.00014,2]
[329592063,1718475043804,-10216.03213401,0.00014,2]
[329592064,1718475043960,-12053.32946986,0.00014,2]
[329592065,1718475043978,-7466.78139312,0.00014,2]
[329592066,1718475044010,-664.0,0.00014,2]
[329592067,1718475044121,-251.29351,0.00014,2]
[329592068,1718475044136,-16186.31877508,0.00014,2]
[329592069,1718475044152,-666.8,0.00014,2]
[329592070,1718475044164,-3206.43188161,0.00014,2]
[329592071,1718475044268,-4036.72479317,0.00014,2]
[329592072,1718475044280,-446.14741197,0.00014,2]
[329592081,1718475047472,-280905.86174851,0.00014,2]
[329592114,1718475058124,-109.55673022,0.00013998,2]
[329592115,1718475058289,-218.63542396,0.00013998,2]
[329592116,1718475058315,-246.10931793,0.00013999,2]
[329592117,1718475058335,-169.76263021,0.00013999,2]
[329592118,1718475058361,-681.0,0.00014,2]
[329592119,1718475058382,-15900.34835787,0.00014,2]
[329592120,1718475058405,-11723.49065933,0.00014,2]
[329592121,1718475058427,-3715.62327939,0.00014,2]
[329592122,1718475058771,-7140.0,0.00014,2]
[329592123,1718475058819,-1446.5731672,0.00014,2]
[329592124,1718475059026,-355.34901942,0.00013999,2]
[329592125,1718475059043,-1945.75177824,0.00014,2]
[329592126,1718475059320,-936.35854836,0.00014,2]
[329592127,1718475059363,-732.25253567,0.00014,2]
[329592128,1718475059384,-4157.38093013,0.00014,2]
[329592129,1718475059396,-5958.30201139,0.00014,2]
[329592130,1718475059657,-4472.4747393,0.00014,2]
[329592131,1718475059693,-354.37716682,0.00014,2]
[329592132,1718475059719,-2615.90852854,0.00014,2]
[329592133,1718475059732,-4969.93,0.00014,2]
[329592134,1718475059960,-670.09752,0.00014,2]
[329592135,1718475059984,-3690.56082276,0.00014,2]
[329592136,1718475059999,-1074.33414641,0.00014,2]
[329592137,1718475060097,-573.43013765,0.00014,2]
[329592138,1718475060164,-414.36,0.00014,2]
[329592139,1718475060187,-605.67764587,0.00014,2]
[329592140,1718475060215,-420.62036438,0.00014,2]
[329592141,1718475060392,-155.0,0.00013999,2]